Cogmind - Beta 16 @@@ ROGUE MODE // 2026.01.27 @ 09:32:31 Player: XXYY00 Result: Self-destructed Performance ------------- Evolutions (2) 1000 Regions Visited (5) 1000 Robots Destroyed (29) 145 Value Destroyed (828) 828 Prototype IDs (4) 80 Alien Tech Used (0) 0 Bonus (-11) -11 TOTAL SCORE: 3042 Bonus ------- Friendly Fire -11 Cogmind --------- Core Integrity 89/550 Matter 260/300 Energy 48/100 System Corruption 1% Temperature Cool (-93) Movement Core (50) Location -8/Materials Parts ------- > --- POWER (2) -------- (None) > --- PROPULSION (3) --- (None) > --- UTILITY (4) ------ Cryofiber Web > --- WEAPON (2) ------- (None) > --- INVENTORY (5) ---- Thermal Generator Improved Heat Sink EM Pulse Gun Particle Gun Peak State ------------ > --- POWER ------------ Improved Ion Engine Light Nuclear Core > --- PROPULSION ------- Compact Wheel Compact Wheel > --- UTILITY ---------- Small Storage Unit Thief Drone Bay > --- WEAPON ----------- Advanced Beam Cannon Heavy Particle Cannon > --- INVENTORY -------- Thermal Generator Cryofiber Web Improved Heat Sink EM Pulse Gun Small Laser Particle Gun Assault Cannon [Rating: 22] Favorites ----------- Power Light Nuclear Core Engine Light Ion Engine Power Core Light Nuclear Core Propulsion Light Treads Treads Light Treads Leg Aluminum Leg Wheel Compact Wheel Utility Small Storage Unit Device Thief Drone Bay Storage Small Storage Unit Weapon Light Assault Rifle Energy Gun Particle Gun Energy Cannon Advanced Beam Cannon Ballistic Gun Light Assault Rifle Ballistic Cannon Assault Cannon Build | -11 -10 -10 -9 -9 -8 ------- Run | Yrd Mat Min Mat Min Mat Slots Evolved 4 | . . . 2 . 2 Power 1 | . . . . . 1 Propulsion 1 | . . . . . 1 Utility 2 | . . . 2 . . Weapon . | . . . . . . Parts Attached 31 | 7 5 2 3 1 13 Power 6 | 1 2 . . . 3 Engine 4 | 1 1 . . . 2 Core 2 | . 1 . . . 1 Reactor . | . . . . . . Propulsion 10 | 2 . 1 2 . 5 Treads 6 | 2 . . 2 . 2 Leg 1 | . . 1 . . . Wheel 3 | . . . . . 3 Hover . | . . . . . . Flight . | . . . . . . Utility 3 | 1 . 1 . . 1 Device 2 | . . 1 . . 1 Storage 1 | 1 . . . . . Processor . | . . . . . . Hackware . | . . . . . . Protection . | . . . . . . Artifact . | . . . . . . Weapon 12 | 3 3 . 1 1 4 Energy Gun 3 | 2 1 . . . . Energy Cannon 2 | . . . 1 . 1 Ballistic Gun 6 | 1 2 . . 1 2 Ballistic Cannon 1 | . . . . . 1 Launcher . | . . . . . . Special Weapon . | . . . . . . Impact Weapon . | . . . . . . Slashing Weapon . | . . . . . . Piercing Weapon . | . . . . . . Special Melee Weapon . | . . . . . . Unidentified Prototypes 2 | . . 1 1 . . Parts Lost 20 | . 1 1 . 1 17 Power 4 | . . . . . 4 Propulsion 7 | . 1 1 . . 5 Utility 2 | . . . . . 2 Weapon 7 | . . . . 1 6 Highest Loss Streak 10 | . 1 1 . 1 10 To Critical Strikes . | . . . . . . Average Backups 6 | 1 4 7 7 7 7 Power . | . . 1 1 1 . Propulsion . | . . . . 1 . Utility 1 | . 1 2 1 1 2 Weapon 3 | . 2 4 4 4 4 Tool/Special . | . . . . . . Unused Backups 7 | . 2 . 1 . 4 Power 1 | . . . . . 1 Propulsion . | . . . . . . Utility 3 | . . . 1 . 2 Weapon 3 | . 2 . . . 1 Tool/Special . | . . . . . . Average Slot Usage (%) 74 | . 82 76 69 76 63 Engine 3 | . 9 . . . 4 Core 8 | . 3 14 11 11 5 Treads 13 | . 26 . 4 22 2 Leg 2 | . . 9 9 . . Wheel 3 | . . . . . 16 Device 7 | . . 8 11 11 9 Storage 11 | . 14 14 11 11 7 Energy Gun 6 | . 11 14 5 . . Energy Cannon 4 | . . . 5 11 8 Ballistic Gun 12 | . 16 14 11 10 7 Peak Build Rating 22 | 6 9 15 18 18 22 Average Rating 12 | 4 6 12 16 17 17 On Entrance 11 | . 6 9 15 18 18 Avg Prop Armor Cover (%) 3 | . . . 6 . 2 Naked Turns . | . . . . . . Heaviest Build 31 | 13 14 18 19 19 31 Greatest Support 48 | 40 40 10 40 40 48 Greatest Overweight (x) 6 | . . 4 1 . 6 Average Overweight (x) . | . . 1 . . . Largest Inventory Capacity 8 | 8 8 8 8 8 8 Average Capacity 7 | 6 8 8 8 8 7 Most Carried 8 | 5 8 8 8 8 8 Average Carried 6 | 1 4 7 7 7 6 Final Capacity 8 | 8 8 8 8 8 5 Final Carried 8 | 1 8 7 8 8 4 Class Distribution -------------------- 100% | Mutant Dominant Class ---------------- Mutant | -10/Materials Mutant | -10/Mines Mutant | -9/Materials Mutant | -9/Mines Mutant | -8/Materials Resources | -11 -10 -10 -9 -9 -8 ----------- Run | Yrd Mat Min Mat Min Mat Matter Collected 549 | 33 291 35 51 33 106 Remotely . | . . . . . . Salvage Created 1053 | . 277 40 51 122 563 Parts 69 | . 15 5 5 8 36 Haulers Intercepted . | . . . . . . Recyclers Shooed 1 | . . . . . 1 Parts Field Recycled . | . . . . . . Retrieved Matter . | . . . . . . Parts Self-Destructed . | . . . . . . Prevented . | . . . . . . Parts Restored . | . . . . . . Kills | -11 -10 -10 -9 -9 -8 ------- Run | Yrd Mat Min Mat Min Mat Combat Hostiles Destroyed 28 | . 7 3 1 5 12 Guns 14 | . 7 3 . . 4 Cannons 14 | . . . 1 5 8 Classes Destroyed 5 | . 3 . 1 . 1 Recycler 1 | . 1 . . . . Swarmer 12 | . 3 3 . 3 3 Grunt 11 | . 4 . . 2 5 Duelist 1 | . . . . . 1 Sentry 4 | . . . 1 . 3 Best Kill Streak 6 | . 2 3 1 3 6 Combat Bots Only 6 | . 2 3 1 3 6 Max Kills in Single Turn 1 | . 1 1 1 1 1 Gunslinging . | . . . . . . Exploded . | . . . . . . Melee . | . . . . . . Uniques/NPCs Destroyed . | . . . . . . Combat | -11 -10 -10 -9 -9 -8 -------- Run | Yrd Mat Min Mat Min Mat Hostile Shots Fired 266 | . 55 12 . 32 167 Missed 77 | . 11 2 . 13 51 Hits 189 | . 44 10 . 19 116 Melee 11 | . . . . . 11 Projectile 178 | . 44 10 . 19 105 Critical Strikes 1 | . . . . . 1 Damage Taken 2642 | . 558 79 . 153 1852 Core 628 | . 112 34 . 21 461 Absorbed by Shields . | . . . . . . Regen/Repaired (Parts) 17 | . 17 . . . . Core Remaining (%) 78 | 100 . 41 . 94 . Volleys Fired 119 | . 46 6 2 18 47 Largest 2 | . 2 2 2 2 2 Hottest 143 | . 85 85 88 88 143 Shots Fired 197 | . 78 12 4 27 76 Gun 144 | . 78 12 2 9 43 Cannon 53 | . . . 2 18 33 Launcher . | . . . . . . Special . | . . . . . . Kinetic 116 | . 61 6 2 9 38 Thermal 81 | . 17 6 2 18 38 Explosive . | . . . . . . Electromagnetic . | . . . . . . Robot Hit Streak 10 | . 10 4 1 7 9 Robot Miss Streak 6 | . 6 4 2 3 4 Penetration Max . | . . . . . . Secondary Targets 2 | . 1 . . . 1 Max Gunslinging Chain 1 | . 1 . . . 1 Shots Hit Robots 119 | . 51 5 1 14 48 Core Hits 60 | . 20 4 1 9 26 Critical Kills . | . . . . . . Critical Parts Destroyed . | . . . . . . Critical Strikes . | . . . . . . Melee Attacks . | . . . . . . Impact . | . . . . . . Slashing . | . . . . . . Piercing . | . . . . . . Sneak Attacks . | . . . . . . Combat Hostiles . | . . . . . . Follow-up Attacks . | . . . . . . Damage Inflicted 1627 | 10 469 79 21 271 777 Guns 895 | . 457 79 . 38 321 Cannons 692 | . . . 21 225 446 Explosions . | . . . . . . Melee . | . . . . . . Ramming 40 | 10 12 . . 8 10 Kinetic 673 | . 339 30 . 38 266 Thermal 914 | . 118 49 21 225 501 Explosive . | . . . . . . Electromagnetic . | . . . . . . Impact . | . . . . . . Slashing . | . . . . . . Piercing . | . . . . . . Highest Corruption 1 | . . . . . 1 Average Corruption 1 | . . . . . 1 Corruption Purged . | . . . . . . Corruption Blocked . | . . . . . . Effects 1 | . . . . . 1 Weapon Failures 1 | . . . . . 1 Overload Shots . | . . . . . . Overflow Damage 8 | . . . . 8 . Projectiles 8 | . . . . 8 . Explosions . | . . . . . . Melee . | . . . . . . Knockbacks 1 | . . . . . 1 Impact . | . . . . . . Kinetic 1 | . . . . . 1 Secondary . | . . . . . . Self-Inflicted Damage 3 | . . . . . 3 Shots . | . . . . . . Rammed 12 | 3 6 . . 1 2 Targets Rammed 13 | 3 7 . . 1 2 Kicked . | . . . . . . Crushed 1 | . 1 . . . . Highest Temperature 528 | . 338 216 71 259 528 Average Temperature 162 | . 110 105 37 93 262 Received Heat Transfer 1035 | . 273 . . 24 738 Effects 22 | . 3 . . . 19 Shutdowns 4 | . . . . . 4 Energy Bleed 2 | . 1 . . . 1 Interference 5 | . 2 . . . 3 Short Circuit 2 | . . . . . 2 Damage (minor) 2 | . . . . . 2 Damage (major) 7 | . . . . . 7 Siege Activations . | . . . . . . Martial Activations . | . . . . . . Shielding Activations . | . . . . . . Robots Disrupted . | . . . . . . Combat Hostiles . | . . . . . . Robots Corrupted . | . . . . . . Combat Hostiles . | . . . . . . Parts Fried . | . . . . . . Impact Corruptions . | . . . . . . Robots Melted . | . . . . . . Combat Hostiles . | . . . . . . Parts Melted 1 | . 1 . . . . Heat Transferred 1718 | . 285 111 37 407 878 Parts Sabotaged . | . . . . . . Parts Stolen . | . . . . . . Parts Stripped . | . . . . . . Power Chain Reactions . | . . . . . . Alert | -11 -10 -10 -9 -9 -8 ------- Run | Yrd Mat Min Mat Min Mat Maximum Alert Level . | . . . . . . Low Security (%) 100 | 100 100 100 100 100 100 Level 1 . | . . . . . . Level 2 . | . . . . . . Level 3 . | . . . . . . Level 4 . | . . . . . . Level 5 . | . . . . . . High Security . | . . . . . . Max Security . | . . . . . . Peak Influence 167 | . 60 81 41 63 167 Initial 6 | . . 6 . . . Average 23 | . 18 18 9 13 52 Influence Increases 834 | . 198 85 41 123 387 Destroy 0b10 Robot/C 560 | . 140 60 20 100 240 Destroy 0b10 Robot/NC 10 | . 5 . 5 . . Destroy Leader 142 | . 30 10 12 20 70 Allied During Kill 7 | . . . 4 3 . Successful Hack 7 | . 7 . . . . Disable Machine 15 | . . 15 . . . Destroy Structure 3 | . 1 . . . 2 Partial Spotted 15 | . 15 . . . . Lose Combat Pursuer 75 | . . . . . 75 Influence Decreases 743 | . 180 103 40 124 296 Entered New Map 13 | . . 12 . 1 . Time Decay 540 | . 170 81 40 123 126 Lost Part 190 | . 10 10 . . 170 Squads Dispatched 5 | . . . 1 1 3 Investigation . | . . . . . . Extermination . | . . . . . . Reinforcement 3 | . . . 1 1 1 Assault . | . . . . . . Garrison 2 | . . . . . 2 Intercept . | . . . . . . Searches Triggered . | . . . . . . Construction Impeded 1 | . . . . 1 . Haulers Reinforced . | . . . . . . Active Scanning Responses . | . . . . . . Cargo Convoy Interrupts . | . . . . . . Stealth | -11 -10 -10 -9 -9 -8 --------- Run | Yrd Mat Min Mat Min Mat Distress Signals 6 | . 3 . 1 1 1 Communications Jammed . | . . . . . . Distress Signals . | . . . . . . Times Spotted 52 | . 18 3 2 6 23 Peak Tracking Total 8 | . 4 2 2 3 8 Tactical Retreats 4 | . . . . . 4 Traps | -11 -10 -10 -9 -9 -8 ------- Run | Yrd Mat Min Mat Min Mat Traps Triggered . | . . . . . . Indirectly . | . . . . . . Trap Hack Attempts . | . . . . . . Triggered . | . . . . . . Disarmed . | . . . . . . Reprogrammed . | . . . . . . Reused . | . . . . . . Traps Extracted . | . . . . . . Installed . | . . . . . . Triggered . | . . . . . . Machines | -11 -10 -10 -9 -9 -8 ---------- Run | Yrd Mat Min Mat Min Mat Machines Disabled 1 | . . 1 . . . Max in Single Turn 1 | . . 1 . . . Machines Repaired . | . . . . . . Machines Dismantled . | . . . . . . Machines Sabotaged . | . . . . . . Overloaded Fab Kills . | . . . . . . Hacking | -11 -10 -10 -9 -9 -8 --------- Run | Yrd Mat Min Mat Min Mat Machines Accessed 8 | . 5 1 1 . 1 Terminals 4 | . 2 . 1 . 1 Fabricators . | . . . . . . Repair Stations 1 | . 1 . . . . Recycling Units 2 | . 2 . . . . Scanalyzers . | . . . . . . Garrison Access . | . . . . . . Total Hacks 14 | . 11 1 1 . 1 Successful 12 | . 9 1 1 . 1 Failed 2 | . 2 . . . . Catastrophic . | . . . . . . Database Lockouts . | . . . . . . Manual . | . . . . . . Terminals 9 | . 7 . 1 . 1 Fabricators . | . . . . . . Repair Stations 2 | . 2 . . . . Recycling Units 2 | . 2 . . . . Scanalyzers . | . . . . . . Garrison Access . | . . . . . . Terminal Hacks 8 | . 5 1 1 . 1 Record 5 | . 4 . 1 . . Prototype ID Bank 1 | . 1 . . . . Open Door 1 | . . 1 . . . Alert Level 1 | . . . . . 1 Fabricator Hacks . | . . . . . . Repair Station Hacks 2 | . 2 . . . . Scan Component 1 | . 1 . . . . Repair 1 | . 1 . . . . Recycling Unit Hacks 2 | . 2 . . . . Process 1 | . 1 . . . . Report Inventory 1 | . 1 . . . . Scanalyzer . | . . . . . . Garrison Access Hacks . | . . . . . . Unauthorized Hacks . | . . . . . . Terminals . | . . . . . . Fabricators . | . . . . . . Repair Stations . | . . . . . . Recycling Units . | . . . . . . Scanalyzers . | . . . . . . Garrison Access . | . . . . . . Data Cores Recovered . | . . . . . . Used . | . . . . . . Hacking Detections 3 | . 3 . . . . Full Trace Events . | . . . . . . Feedback Events . | . . . . . . Feedback Blocked . | . . . . . . Robot Schematics Acquired . | . . . . . . Robots Built . | . . . . . . Authchips . | . . . . . . Time . | . . . . . . Total Robot Build Rating . | . . . . . . Part Schematics Acquired . | . . . . . . Parts Built . | . . . . . . Authchips . | . . . . . . Time . | . . . . . . Total Part Build Rating . | . . . . . . Part Studies Acquired . | . . . . . . Parts Repaired 1 | . 1 . . . . Time 38 | . 38 . . . . Parts Recycled . | . . . . . . Recycled Matter 37 | . 37 . . . . Retrieved Matter . | . . . . . . Retrieved Components . | . . . . . . Parts Scanalyzed . | . . . . . . Part Schematics Acquired . | . . . . . . Parts Damaged . | . . . . . . Bothacking | -11 -10 -10 -9 -9 -8 ------------ Run | Yrd Mat Min Mat Min Mat Used RIF Installer . | . . . . . . Robots Hacked . | . . . . . . Non-combat . | . . . . . . Combat . | . . . . . . Robot Hacks Applied . | . . . . . . Relay Couplers Released . | . . . . . . Fabnet Peak Effective % . | . . . . . . Robots Rewired . | . . . . . . Allies Hacked . | . . . . . . Hacks Repelled . | . . . . . . Allies | -11 -10 -10 -9 -9 -8 -------- Run | Yrd Mat Min Mat Min Mat Total Allies . | . . . . . . Largest Group . | . . . . . . Highest-Rated Group . | . . . . . . Highest-Rated Ally . | . . . . . . Total Orders . | . . . . . . Ally Attacks 17 | . . . 14 3 . Total Damage 77 | . . . 71 6 . Kills 1 | . . . 1 . . Allies Corrupted 1 | . . . . 1 . Allies Melted . | . . . . . . Intel | -11 -10 -10 -9 -9 -8 ------- Run | Yrd Mat Min Mat Min Mat Active Infowar (turns) . | . . . . . . Robot Analysis Total . | . . . . . . Derelict Logs Recovered 1 | . . 1 . . . Drone Launches 3 | . . 3 . . . Drone Recoveries 1 | . . . 1 . . Exploration | -11 -10 -10 -9 -9 -8 ------------- Run | Yrd Mat Min Mat Min Mat Turns Passed 2047 | 65 601 366 191 402 422 Spaces Moved 1077 | 40 285 172 98 222 260 Core 98 | 16 . 35 . . 47 Treads 586 | 24 285 . 32 222 23 Legs 203 | . . 137 66 . . Wheels 190 | . . . . . 190 Hover . | . . . . . . Flight . | . . . . . . Fastest Speed 50 | 50 160 190 160 160 50 Average Speed 152 | 116 160 202 180 160 100 Slowest Speed 350 | 160 160 250 190 160 350 Overloaded Moves . | . . . . . . Propulsion Burnouts . | . . . . . . Robots Hopped . | . . . . . . Potential Cave-ins . | . . . . . . Cave-ins Triggered . | . . . . . . Exploration Rate (%) 27 | 4 43 44 10 48 16 Regions Visited 5 Branch Regions 2 Pre-discovered Areas 1 | . . 1 . . . Known Exits Taken . | . . . . . . Unknown Exits Taken 5 | 1 1 1 1 1 . Scrap Searched 1 | . . 1 . . . Spaces Dug . | . . . . . . Terrain Destroyed 2 | . . . . . 2 Melee . | . . . . . . Projectile 2 | . . . . . 2 AOE . | . . . . . . Terrain Rammed . | . . . . . . Walls Destroyed . | . . . . . . Machines Disabled . | . . . . . . Actions | -11 -10 -10 -9 -9 -8 --------- Run | Yrd Mat Min Mat Min Mat Total 1298 | 56 359 180 109 243 351 Wait . | . . . . . . Move 1072 | 39 284 171 97 221 260 Hop . | . . . . . . Pick Up 41 | 7 12 1 3 1 17 Fast Attach 1 | . . . 1 . . Attach 21 | 6 1 2 . 1 11 Detach . | . . . . . . Swap 14 | 1 5 . 3 1 4 Drop 17 | . 4 . 3 . 10 Fire 119 | . 46 6 2 18 47 Melee . | . . . . . . Ram 1 | . . . . . 1 Kick . | . . . . . . Crush 12 | 3 7 . . 1 1 Escape Stasis . | . . . . . . Rewire . | . . . . . . Trap . | . . . . . . Miscellaneous . | . . . . . . Route ------- -11/Scrapyard -10/Materials (discovered 2 exits: *Min x2) -10/Mines -9/Materials -9/Mines -8/Materials History --------- Turn | Location | Event 5 | -11/Scrapyard | Discovered new exit (range 15) 66 | -11/Scrapyard | Entered Materials 194 | -10/Materials | Discovered new exit (range 16) 315 | -10/Materials | Build established: Mutant 609 | -10/Materials | Repaired Lgt. Nuclear Core 646 | -10/Materials | Discovered new exit (range 12) 667 | -10/Materials | Entered Mines 669 | -10/Mines | Core integrity fell below 50% 787 | -10/Mines | Found the Drone Emporium 796 | -10/Mines | Found Prototype Device 797 | -10/Mines | Identified Thief Drone Bay 887 | -10/Mines | Found a hidden stash of uninstalled traps 1001 | -10/Mines | Discovered new exit (range 13) 1033 | -10/Mines | Entered Materials 1033 | -9/Materials | Accompanied by 3 allies 1033 | -9/Materials | Evolved 2 slots: Utility x2 1129 | -9/Materials | Discovered new exit (range 9) 1153 | -9/Materials | Met 8R-AWN 1224 | -9/Materials | Entered Mines 1224 | -9/Mines | Accompanied by 1 ally 1226 | -9/Mines | Followed 8R-AWN into the Mines 1275 | -9/Mines | Received a Rocket Launcher from a helpful Derelict 1390 | -9/Mines | Excavation squad dispatched 1390 | -9/Mines | A large section of the Mines collapsed 1602 | -9/Mines | Discovered new exit (range 11) 1626 | -9/Mines | Entered Materials 1626 | -8/Materials | Evolved 2 slots: Power x1, Propulsion x1 1854 | -8/Materials | Garrison activated, responded to threat 1926 | -8/Materials | Lost 4 parts (1p1n2w) 1974 | -8/Materials | Garrison activated, responded to threat 2030 | -8/Materials | Lost 10 parts (2p4n2u2w) 2038 | -8/Materials | Core integrity fell below 50% 2048 | -8/Materials | Core integrity fell below 20% 2048 | -8/Materials | Self-destructed Last Messages --------------- K-01 Serf collects debris. Slammed into G-47 Trooper. Lgt. Treads destroyed. K-01 Serf collects debris. Lgt. Assault Rifle destroyed. K-01 Serf collects debris. Lgt. Treads destroyed. Acquired 7 matter. Sml. Storage Unit destroyed. K-01 Serf collects debris. Lgt. Nuclear Core destroyed. K-01 Serf collects debris. Atomic Centrifuge disabled. [Achievement: Hydra] Acquired Shotgun. Critical hit (Burn: +37). G-47 Trooper destroyed. Switching to secondary target: L-31 Rogue. Shotgun destroyed. Sml. Laser destroyed. Map ----- +----------------------------------------------------+ | ?????????????????????????????????????????????????? | | ?????????????????????????????????????????????????? | | ?????????????????????????????????????????????????? | | ?????????????????????????????????????????????????? | | ?????????????????????????????????????????????????? | | ?????????????????????????????????????????????????? | | ?????????????????????????????????????????????????? | | ???????????????????????????????? ??????????????? | | ???????????????????????????????? ??????????????? | | ??????????????????? ??????????? ??????????????? | | ??????????????????? ""? ??????# #?????????????? | | ??????????????????? """ !????# #?????????????? | | ??????????????????# ! ???# #?????????????? | | ??????????????????# ????# #?????????????? | | ??????????????????# ????# #?????????????? | | ??????????????????#= ""???## ##????????????? | | ??????????????????# Y????# #????????????? | | ??????????????????# ?????? ?????????????? | | #####?????????????# ??????? ?????????????? | | #?????????????+ ????????? ??????????????? | | #?????????????# #????????? ??????????????? | | T #?????????????# #?#########+#??????????????? | | ############### ### g Y #??????????????? | | # [#= ## g"" """ #??????????????? | | ## """ " %#* % ##l"G """ #??????????????? | | ## """ """ ==+% ##@%"" """ #??????????????? | | ## """ """ %# ##!==g g #??????????????? | | ## =%*#!*!= #########/##??????????????? | | ## [ *=[ ###/######### ####+??????????? | | ############+##%=%= + " ?????? | | #?????????##[## """ "" ### ####??????? | | ########### # """ """ #?# ######?????????? | | # """ """ #?## ##??????????????? | | # #??# #???????????????? | | = T # #??# #???????????????? | | ! # #??# #???????????????? | | !! != # ! #??# #???????????????? | | == % ###########??" #???????????????? | | === [ #???????????? ???????????????? | | * #????????????# #???????????????? | | #????????????# #???????????????? | | ###+########## +????????????? #???????????????? | | ?????????????# #????????????? ???????????????? | | ?????????????# #?????????????! ???????????????? | | ?????????????# #???????????????????????????????? | | ?????????????#####???????????????????????????????? | | ?????????????????????????????????????????????????? | | ?????????????????????????????????????????????????? | | ?????????????????????????????????????????????????? | | ?????????????????????????????????????????????????? | +----------------------------------------------------+ Best States ------------- Heat Dissipation 31 Energy Generation 21 Energy Capacity 325 Matter Stores 300 Matter Capacity 300 Sight Range 16 Terrain Scan Density 10 Base Temperature (-) 100 Evasion (%) 50 Recoil Reduction 2 Item Schematics ----------------- None Robot Schematics ------------------ None Fabricated ------------ Nothing Repaired ---------- Lgt. Nuclear Core | 66% | -10/Materials Studied --------- None Alien Tech Used ----------------- None Achievements -------------- Follow The Leader Hydra Part-time Mechanic Troublemaker Challenges ------------ None Game ------ Seed GaussZhirovShell Manual? 0 Play Time 00:20:37 Cumulative 2.4 hours Start 2026.01.27 @ 08:55:47 End 2026.01.27 @ 09:32:31 Sessions 1 Manual Loads 0 Difficulty Rogue Special Mode None Game No. 7 Rogue 7 Adventurer 0 Explorer 0 Win Type - Total 0 Types 0/0/0/0/0/0/0/0/0/0 Lore% 2 Gallery% 6 Achievement% 7 Wizard Run 0 Options --------- Layout 1 ASCII 0 Keyboard 0 Movement Arrows Keybinds 0 Fullscreen 1 Font 32/SmallcapsGlow Map View 50x40 Zoom Use 0% Tactical HUD 0 Map Filters NONE Filters NONE Steam 1 RUN: 516ffb9f-c7f7-4e76-bba1-14592b9a50e0